fUST/lending_fUST_20250601
["ID","MTS","AMOUNT","RATE_DAILY","PERIOD"]
[363425868,1748721052019,-430.0,0.0002,2]
[363425870,1748721052028,-1183.07,0.0002,2]
[363425872,1748721052038,-1735.84,0.0002,2]
[363425874,1748721052048,-1885.75,0.0002,2]
[363425876,1748721052059,-2122.85,0.0002,2]
[363425879,1748721052070,-430.0,0.0002,2]
[363425881,1748721052080,-445.17,0.0002,2]
[363425883,1748721052090,-430.0,0.0002,2]
[363425885,1748721052100,-3012.31,0.0002,2]
[363425887,1748721052110,-842.52,0.0002,2]
[363425889,1748721052119,-430.0,0.0002,2]
[363425891,1748721052129,-2477.92,0.0002,2]
[363425893,1748721052140,-430.0,0.0002,2]
[363425895,1748721052150,-1209.38,0.0002,2]
[363425897,1748721052160,-546.99,0.0002,2]
[363425899,1748721052170,-743.56,0.0002,2]
[363425901,1748721052180,-1121.54,0.0002,2]
[363425903,1748721052190,-430.0,0.0002,2]
[363425905,1748721052200,-430.0,0.0002,2]
[363425907,1748721052210,-1421.45,0.0002,2]
[363425909,1748721052220,-1689.57,0.0002,2]
[363425911,1748721052231,-853.47,0.0002,2]
[363425913,1748721052240,-696.83,0.0002,2]
[363425916,1748721052251,-2114.45,0.0002,2]
[363425918,1748721052261,-1160.86,0.0002,2]
[363425920,1748721052271,-657.57,0.0002,2]
[363425922,1748721052281,-10794.48,0.00020015,2]
[363425924,1748721052290,-500.0,0.00020027,2]
[363425926,1748721052300,-153.0,0.00020027,2]
[363425928,1748721052310,-153.0,0.00020027,2]
[363425930,1748721052320,-151.0,0.00020133,2]
[363425932,1748721052330,-151.0,0.00020133,2]
[363425934,1748721052340,-151.0,0.00020133,2]
[363425936,1748721052350,-207.4,0.00020134,2]
[363425938,1748721052360,-300.0,0.00020134,2]
[363425940,1748721052370,-300.0,0.00020134,2]
[363425942,1748721052379,-300.0,0.00020134,2]
[363425944,1748721052389,-300.0,0.00020134,2]
[363425946,1748721052399,-300.0,0.00020134,2]
[363425948,1748721052409,-300.0,0.00020134,2]
[363425950,1748721052418,-5000.0,0.00020134,2]
[363425952,1748721052428,-300.0,0.00020134,2]
[363425954,1748721052438,-300.0,0.00020134,2]
[363425956,1748721052449,-300.0,0.00020134,2]
[363425958,1748721052458,-2817.80628261,0.00020134,2]
[363425960,1748721052468,-300.0,0.00020134,2]
[363425962,1748721052478,-300.0,0.00020134,2]
[363425964,1748721052489,-300.0,0.00020134,2]
[363425966,1748721052499,-300.0,0.00020134,2]
[363425968,1748721052509,-300.0,0.00020134,2]
[363425970,1748721052519,-300.0,0.00020134,2]
[363425972,1748721052529,-364.3142842,0.00020164,2]
[363425975,1748721052539,-741.644652,0.00020187,2]
[363425977,1748721052551,-814.93536587,0.0002021,2]
[363425979,1748721052560,-430.0,0.00020273,2]
[363425981,1748721052571,-980.1,0.00020273,2]
[363425983,1748721052580,-430.0,0.00020273,2]
[363425985,1748721052590,-430.0,0.00020273,2]
[363425987,1748721052600,-430.0,0.00020273,2]
[363425989,1748721052610,-1448.02,0.00020273,2]
[363425991,1748721052621,-430.0,0.00020273,2]
[363425993,1748721052630,-1183.07,0.00020273,2]
[363425995,1748721052640,-1735.84,0.00020273,2]
[363425997,1748721052650,-1885.75,0.00020273,2]
[363425999,1748721052661,-2122.85,0.00020273,2]
[363426001,1748721052670,-314.5372,0.00020273,2]
[363426003,1748721052680,-314.5372,0.00020273,2]
[363426005,1748721052690,-430.0,0.00020273,2]
[363426007,1748721052700,-445.17,0.00020273,2]
[363426010,1748721052710,-430.0,0.00020273,2]
[363426011,1748721052722,-3012.31,0.00020273,2]
[363426013,1748721052732,-842.52,0.00020273,2]
[363426016,1748721052743,-430.0,0.00020273,2]
[363426019,1748721052762,-2477.92,0.00020273,2]
[363426021,1748721052775,-430.0,0.00020273,2]
[363426023,1748721052785,-1209.38,0.00020273,2]
[363426025,1748721052795,-743.56,0.00020273,2]
[363426027,1748721052804,-1121.54,0.00020273,2]
[363426029,1748721052815,-187.750318,0.00020273,2]
[363426031,1748721052826,-277.170479,0.00020273,2]
[363426033,1748721052836,-305.01,0.00020273,2]
[363426036,1748721052848,-381.19478374,0.00020273,2]
[363426038,1748721052858,-187.750318,0.00020273,2]
[363426040,1748721052868,-277.170479,0.00020273,2]
[363426042,1748721052879,-1421.45,0.00020273,2]
[363426044,1748721052889,-1689.57,0.00020273,2]
[363426046,1748721052897,-200.302633,0.00020273,2]
[363426048,1748721052905,-853.47,0.00020273,2]
[363426050,1748721052915,-696.83,0.00020273,2]
[363426052,1748721052926,-151.0,0.00020273,2]
[363426054,1748721052936,-2114.45,0.00020273,2]
[363426056,1748721052947,-1160.86,0.00020273,2]
[363426058,1748721052957,-657.57,0.00020273,2]
[363426061,1748721052968,-151.0,0.00020273,2]
[363426063,1748721052978,-962.0,0.00020273,2]
[363426065,1748721052988,-708.0,0.00020273,2]
[363426067,1748721052998,-2227.0,0.00020273,2]
[363426069,1748721053009,-405.0,0.00020273,2]
[363426071,1748721053020,-405.0,0.00020273,2]
[363426073,1748721053030,-151.0,0.00020384,2]
[363426075,1748721053041,-406.881495,0.00020384,2]
[363426077,1748721053052,-1000.0,0.00020448,2]
[363426079,1748721053063,-814.93536587,0.00020486,3]
[363426081,1748721053073,-153.0,0.00020493,2]
[363426083,1748721053083,-153.0,0.00020493,2]
[363426085,1748721053094,-1144.5926006,0.00020493,2]
[363426087,1748721053104,-153.0,0.00020493,2]
[363426089,1748721053114,-153.0,0.00020493,2]
[363426091,1748721053125,-153.0,0.00020493,2]
[363426093,1748721053135,-153.0,0.00020493,2]
[363426095,1748721053146,-153.0,0.00020493,2]
[363426097,1748721053156,-1500.0,0.00020509,2]
[363426099,1748721053166,-1584.09246953,0.00020509,2]
[363426101,1748721053176,-151.0,0.00020516,2]
[363426103,1748721053187,-546.570645,0.00020516,2]
[363426106,1748721053198,-546.570645,0.00020516,2]
[363426108,1748721053212,-151.0,0.00020547,2]
[363426110,1748721053222,-151.0,0.00020547,2]
[363426112,1748721053233,-218.569449,0.00020547,2]
[363426114,1748721053244,-151.0,0.00020547,2]
[363426116,1748721053255,-430.0,0.00020547,2]
[363426118,1748721053265,-151.0,0.00020547,2]
[363426120,1748721053275,-151.0,0.00020547,2]
[363426122,1748721053287,-980.1,0.00020547,2]
[363426124,1748721053298,-430.0,0.00020547,2]
[363426127,1748721053308,-430.0,0.00020547,2]
[363426129,1748721053320,-219.346504,0.00020547,2]
[363426131,1748721053332,-526.93,0.00020547,2]
[363426133,1748721053343,-219.346504,0.00020547,2]
[363426135,1748721053355,-1448.02,0.00020547,2]
[363426137,1748721053366,-430.0,0.00020547,2]
[363426139,1748721053378,-1183.07,0.00020547,2]
[363426141,1748721053389,-1735.84,0.00020547,2]
[363426143,1748721053399,-1885.75,0.00020547,2]
[363426145,1748721053410,-2122.85,0.00020547,2]
[363426147,1748721053421,-151.0,0.00020547,2]
[363426149,1748721053431,-430.0,0.00020547,2]
[363426151,1748721053441,-445.17,0.00020547,2]
[363426153,1748721053451,-430.0,0.00020547,2]
[363426155,1748721053462,-3012.31,0.00020547,2]
[363426158,1748721053472,-842.52,0.00020547,2]
[363426160,1748721053483,-430.0,0.00020547,2]
[363426162,1748721053492,-2477.92,0.00020547,2]
[363426164,1748721053502,-430.0,0.00020547,2]
[363426166,1748721053512,-1209.38,0.00020547,2]
[363426168,1748721053522,-743.56,0.00020547,2]
[363426170,1748721053533,-1121.54,0.00020547,2]
[363426172,1748721053543,-1421.45,0.00020547,2]
[363426174,1748721053553,-1689.57,0.00020547,2]
[363426176,1748721053563,-853.47,0.00020547,2]
[363426178,1748721053574,-696.83,0.00020547,2]
[363426180,1748721053585,-2114.45,0.00020547,2]
[363426183,1748721053596,-1160.86,0.00020547,2]
[363426185,1748721053607,-657.57,0.00020547,2]
[363426187,1748721053619,-1001.529059,0.00020551,3]
[363426189,1748721053629,-151.0,0.00020551,2]
[363426191,1748721053639,-1043.700093,0.00020551,2]
[363426193,1748721053650,-246.442502,0.00020551,2]
[363426195,1748721053662,-246.442502,0.00020551,2]
[363426197,1748721053673,-297.49248903,0.00020575,2]
[363426199,1748721053683,-5000.0,0.00020682,2]
[363426201,1748721053695,-160.3691433,0.00020712,2]
[363426218,1748721053848,-351.0616147,0.00020712,2]
[363426220,1748721053859,-917.0054233,0.00020712,2]
[363426222,1748721053868,-153.0,0.00020712,2]
[363426224,1748721053878,-158.4581234,0.00020712,2]
[363426226,1748721053888,-352.9081704,0.00020712,2]
[363426228,1748721053898,-158.4581234,0.00020712,2]
[363426230,1748721053907,-417.2851691,0.00020712,2]
[363426232,1748721053917,-379.95923803,0.00020756,2]
[363426235,1748721053927,-814.93536587,0.00020762,3]
[363426237,1748721053937,-430.0,0.00020821,2]
[363426238,1748721053946,-980.1,0.00020821,2]
[363426240,1748721053955,-430.0,0.00020821,2]
[363426242,1748721053965,-430.0,0.00020821,2]
[363426244,1748721053975,-1448.02,0.00020821,2]
[363426246,1748721053986,-430.0,0.00020821,2]
[363426248,1748721053996,-1183.07,0.00020821,2]
[363426250,1748721054006,-1735.84,0.00020821,2]
[363426252,1748721054015,-1885.75,0.00020821,2]
[363426255,1748721054026,-2122.85,0.00020821,2]
[363426257,1748721054036,-430.0,0.00020821,2]
[363426259,1748721054046,-445.17,0.00020821,2]
[363426261,1748721054055,-468.3112153,0.00020821,2]
[363426263,1748721054064,-3012.31,0.00020821,2]
[363426265,1748721054074,-842.52,0.00020821,2]
[363426267,1748721054084,-430.0,0.00020821,2]
[363426269,1748721054093,-2477.92,0.00020821,2]
[363426271,1748721054103,-430.0,0.00020821,2]
[363426273,1748721054112,-1209.38,0.00020821,2]
[363426275,1748721054122,-743.56,0.00020821,2]
[363426277,1748721054132,-1121.54,0.00020821,2]
[363426279,1748721054141,-1421.45,0.00020821,2]
[363426281,1748721054151,-1689.57,0.00020821,2]
[363426283,1748721054160,-853.47,0.00020821,2]
[363426285,1748721054170,-696.83,0.00020821,2]
[363426287,1748721054181,-2114.45,0.00020821,2]
[363426288,1748721054192,-1160.86,0.00020821,2]
[363426290,1748721054202,-657.57,0.00020821,2]
[363426292,1748721054211,-8253.32051326,0.0002091,3]
[363426295,1748721054221,-16191.72,0.00020924,2]
[363426297,1748721054230,-151.0,0.00020924,2]
[363426299,1748721054239,-190.996215,0.00020924,2]
[363426301,1748721054250,-190.996215,0.00020924,2]
[363426303,1748721054258,-187.750318,0.00020924,2]
[363426305,1748721054267,-187.750318,0.00020924,2]
[363426306,1748721054275,-244.540024,0.00020972,2]
[363426307,1748721054284,-151.0,0.00020972,2]
[363426308,1748721054295,-258.955591,0.00020972,2]
[363426309,1748721054304,-151.0,0.00020972,2]
[363426310,1748721054313,-600.639956,0.00020972,2]
[363426311,1748721054323,-600.639956,0.00020972,2]
[363426312,1748721054332,-150.0,0.00020972,2]
[363426313,1748721054341,-150.325,0.00020972,2]
[363426314,1748721054351,-150.0,0.00020972,2]
[363426316,1748721054360,-150.0,0.00020972,2]
[363426318,1748721054369,-150.0,0.00020972,2]
[363426320,1748721054378,-3000.0,0.00021,2]
[363426322,1748721054387,-314.84782018,0.00021,3]
[363426324,1748721054398,-842.5625,0.00021,3]
[363426326,1748721054408,-212.77096907,0.00021,3]
[363426328,1748721054417,-3000.0,0.0002101,2]
[363426330,1748721054427,-151.0,0.0002101,2]
[363426332,1748721054436,-151.0,0.0002101,2]
[363426334,1748721054445,-385.558465,0.0002101,2]
[363426336,1748721054454,-385.558465,0.0002101,2]
[363426338,1748721054462,-158.043691,0.0002101,2]
[363426340,1748721054471,-158.043691,0.0002101,2]
[363426342,1748721054480,-357.937802,0.0002101,2]
[363426344,1748721054491,-357.937802,0.0002101,2]
[363426346,1748721054500,-3000.0,0.0002102,2]
[363426348,1748721054511,-3000.0,0.0002103,2]
[363426350,1748721054521,-814.93536587,0.00021038,4]
[363426354,1748721054542,-3000.0,0.0002104,2]
[363426356,1748721054554,-3000.0,0.0002105,2]
[363426358,1748721054564,-2000.0,0.00021057,2]
[363426360,1748721054575,-3000.0,0.0002106,2]
[363426362,1748721054585,-900.0,0.0002106,2]
[363426364,1748721054595,-314.5372,0.0002106,2]
[363426366,1748721054606,-314.5372,0.0002106,2]
[363426368,1748721054615,-277.170479,0.0002106,2]
[363426370,1748721054625,-277.170479,0.0002106,2]
[363426372,1748721054635,-151.0,0.0002106,2]
[363426374,1748721054645,-3000.0,0.0002107,2]
[363426376,1748721054655,-3000.0,0.0002108,2]
[363426379,1748721054666,-151.0,0.0002108,2]
[363426381,1748721054677,-151.0,0.0002108,2]
[363426383,1748721054687,-151.0,0.0002108,2]
[363426385,1748721054698,-3000.0,0.0002109,2]
[363426387,1748721054706,-430.0,0.00021095,2]
[363426389,1748721054716,-299.474068,0.00021095,2]
[363426391,1748721054726,-151.0,0.00021095,2]
[363426393,1748721054736,-980.1,0.00021095,2]
[363426395,1748721054746,-430.0,0.00021095,2]
[363426397,1748721054756,-430.0,0.00021095,2]
[363426399,1748721054765,-219.346504,0.00021095,2]
[363426401,1748721054778,-219.346504,0.00021095,2]
[363426403,1748721054788,-1448.02,0.00021095,2]
[363426405,1748721054798,-430.0,0.00021095,2]
[363426407,1748721054808,-1183.07,0.00021095,2]
[363426409,1748721054819,-1735.84,0.00021095,2]
[363426411,1748721054828,-1885.75,0.00021095,2]
[363426413,1748721054839,-2122.85,0.00021095,2]
[363426415,1748721054849,-151.0,0.00021095,2]
[363426417,1748721054859,-430.0,0.00021095,2]
[363426419,1748721054868,-445.17,0.00021095,2]
[363426421,1748721054878,-3012.31,0.00021095,2]
[363426423,1748721054888,-842.52,0.00021095,2]
[363426425,1748721054898,-430.0,0.00021095,2]
[363426427,1748721054909,-2477.92,0.00021095,2]
[363426429,1748721054919,-430.0,0.00021095,2]
[363426432,1748721054929,-1209.38,0.00021095,2]
[363426434,1748721054940,-743.56,0.00021095,2]
[363426436,1748721054951,-1121.54,0.00021095,2]
[363426438,1748721054960,-1421.45,0.00021095,2]
[363426440,1748721054971,-1689.57,0.00021095,2]
[363426442,1748721054980,-853.47,0.00021095,2]
[363426444,1748721054990,-696.83,0.00021095,2]
[363426446,1748721055000,-2114.45,0.00021095,2]
[363426448,1748721055010,-1160.86,0.00021095,2]
[363426450,1748721055019,-657.57,0.00021095,2]
[363426452,1748721055028,-287.35,0.000211,2]
[363426454,1748721055039,-3000.0,0.000211,2]
[363426456,1748721055048,-3000.0,0.0002111,2]
[363426458,1748721055058,-3000.0,0.0002112,2]
[363426460,1748721055068,-3000.0,0.0002113,2]
[363426462,1748721055077,-3000.0,0.0002114,2]
[363426465,1748721055088,-3000.0,0.0002115,2]
[363426467,1748721055097,-3000.0,0.0002116,2]
[363426469,1748721055107,-151.0,0.0002116,2]
[363426471,1748721055117,-151.0,0.0002116,2]
[363426473,1748721055126,-3000.0,0.0002117,2]
[363426475,1748721055136,-151.0,0.0002117,2]
[363426477,1748721055146,-3000.0,0.0002118,2]
[363426479,1748721055156,-721.0,0.0002119,2]
[363426481,1748721055166,-721.0,0.0002119,2]
[363426483,1748721055176,-721.0,0.0002119,2]
[363426485,1748721055187,-338.33621332,0.0002119,2]
[363426487,1748721055198,-3000.0,0.0002119,2]
[363426489,1748721055209,-151.0,0.0002119,2]
[363426491,1748721055219,-546.570645,0.0002119,2]
[363426494,1748721055230,-546.570645,0.0002119,2]
[363426495,1748721055241,-151.0,0.0002119,2]
[363426498,1748721055251,-3000.0,0.000212,2]
[363426500,1748721055262,-3000.0,0.0002121,2]
[363426502,1748721055272,-151.0,0.0002121,2]
[363426504,1748721055281,-406.881495,0.0002121,2]
[363426506,1748721055291,-3128.86271,0.0002122,2]
[363426508,1748721055301,-5000.0,0.0002123,2]
[363426510,1748721055311,-800.0,0.00021281,2]
[363426512,1748721055321,-814.93536587,0.00021314,5]
[363426514,1748721055331,-151.0,0.00021369,2]
[363426516,1748721055341,-1043.700093,0.00021369,2]
[363426518,1748721055351,-246.442502,0.00021369,2]
[363426520,1748721055361,-246.442502,0.00021369,2]
[363426522,1748721055371,-151.0,0.00021369,2]
[363426524,1748721055381,-151.0,0.00021369,2]
[363426526,1748721055391,-179.358245,0.00021369,2]
[363426528,1748721055401,-600.639956,0.00021369,2]
[363426530,1748721055410,-430.0,0.00021369,2]
[363426532,1748721055420,-600.639956,0.00021369,2]
[363426534,1748721055430,-190.996215,0.00021369,2]
[363426536,1748721055439,-190.996215,0.00021369,2]
[363426538,1748721055448,-980.1,0.00021369,2]
[363426541,1748721055459,-430.0,0.00021369,2]
[363426543,1748721055468,-382.16041047,0.00021369,2]
[363426545,1748721055478,-1448.02,0.00021369,2]
[363426547,1748721055488,-430.0,0.00021369,2]
[363426549,1748721055498,-1183.07,0.00021369,2]
[363426551,1748721055507,-1735.84,0.00021369,2]
[363426553,1748721055517,-1885.75,0.00021369,2]
[363426555,1748721055527,-2122.85,0.00021369,2]
[363426557,1748721055536,-430.0,0.00021369,2]
[363426559,1748721055546,-445.17,0.00021369,2]
[363426561,1748721055555,-3012.31,0.00021369,2]
[363426563,1748721055565,-842.52,0.00021369,2]
[363426565,1748721055574,-430.0,0.00021369,2]
[363426567,1748721055584,-2477.92,0.00021369,2]
[363426569,1748721055594,-430.0,0.00021369,2]
[363426571,1748721055604,-1209.38,0.00021369,2]
[363426573,1748721055614,-743.56,0.00021369,2]
[363426575,1748721055624,-1121.54,0.00021369,2]
[363426578,1748721055634,-187.750318,0.00021369,2]
[363426579,1748721055643,-187.750318,0.00021369,2]
[363426582,1748721055653,-1421.45,0.00021369,2]
[363426584,1748721055663,-1689.57,0.00021369,2]
[363426586,1748721055672,-853.47,0.00021369,2]
[363426588,1748721055682,-696.83,0.00021369,2]
[363426590,1748721055693,-2114.45,0.00021369,2]
[363426592,1748721055703,-1160.86,0.00021369,2]
[363426594,1748721055714,-657.57,0.00021369,2]
[363426596,1748721055723,-800.0,0.00021381,2]
[363426598,1748721055733,-800.0,0.00021424,2]
[363426600,1748721055744,-3702.87306386,0.000215,3]
[363426602,1748721055753,-215.0738,0.00021503,2]
[363426604,1748721055766,-814.93536587,0.0002159,5]
[363426606,1748721055780,-9863.52,0.000216,2]
[363426608,1748721055790,-151.0,0.000216,2]
[363426610,1748721055799,-151.0,0.000216,2]
[363426612,1748721055809,-385.558465,0.000216,2]
[363426615,1748721055820,-385.558465,0.000216,2]
[363426617,1748721055829,-158.043691,0.000216,2]
[363426619,1748721055839,-158.043691,0.000216,2]
[363426621,1748721055849,-357.937802,0.000216,2]
[363426623,1748721055858,-357.937802,0.000216,2]
[363426625,1748721055867,-250.0,0.000216,30]
[363426627,1748721055876,-314.5372,0.000216,2]
[363426629,1748721055886,-314.5372,0.000216,2]
[363426631,1748721055896,-277.170479,0.000216,2]
[363426633,1748721055905,-277.170479,0.000216,2]
[363426635,1748721055916,-151.0,0.000216,2]
[363426637,1748721055926,-2500.0,0.00021605,2]
[363426639,1748721055935,-151.0,0.00021643,2]
[363426641,1748721055945,-151.0,0.00021643,2]
[363426643,1748721055955,-151.0,0.00021643,2]
[363426645,1748721055965,-430.0,0.00021643,2]
[363426647,1748721055975,-980.1,0.00021643,2]
[363426649,1748721055983,-430.0,0.00021643,2]
[363426651,1748721055993,-1448.02,0.00021643,2]
[363426653,1748721056002,-430.0,0.00021643,2]
[363426655,1748721056011,-1183.07,0.00021643,2]
[363426657,1748721056021,-1735.84,0.00021643,2]
[363426659,1748721056030,-1885.75,0.00021643,2]
[363426661,1748721056040,-2122.85,0.00021643,2]
[363426663,1748721056049,-430.0,0.00021643,2]
[363426665,1748721056058,-445.17,0.00021643,2]
[363426667,1748721056068,-3012.31,0.00021643,2]
[363426670,1748721056078,-842.52,0.00021643,2]
[363426672,1748721056088,-430.0,0.00021643,2]
[363426674,1748721056098,-2477.92,0.00021643,2]
[363426676,1748721056106,-430.0,0.00021643,2]
[363426678,1748721056116,-1209.38,0.00021643,2]
[363426680,1748721056125,-743.56,0.00021643,2]
[363426682,1748721056135,-1121.54,0.00021643,2]
[363426684,1748721056145,-1421.45,0.00021643,2]
[363426686,1748721056155,-1689.57,0.00021643,2]
[363426688,1748721056164,-853.47,0.00021643,2]
[363426690,1748721056174,-696.83,0.00021643,2]
[363426692,1748721056184,-2114.45,0.00021643,2]
[363426694,1748721056194,-1160.86,0.00021643,2]
[363426696,1748721056203,-657.57,0.00021643,2]
[363426698,1748721056213,-68593.56,0.000217,2]
[363426700,1748721056223,-151.0,0.000217,2]
[363426702,1748721056232,-151.0,0.000217,2]
[363426704,1748721056242,-151.0,0.000217,2]
[363426706,1748721056252,-151.0,0.000217,2]
[363426708,1748721056261,-151.0,0.000217,2]
[363426710,1748721056271,-406.881495,0.000217,2]
[363426712,1748721056281,-288.807364,0.000217,2]
[363426714,1748721056291,-546.570645,0.000217,2]
[363426716,1748721056300,-546.570645,0.000217,2]
[363426718,1748721056310,-151.0,0.000217,2]
[363426720,1748721056320,-151.0,0.000217,2]
[363426722,1748721056331,-219.346504,0.000217,2]
[363426724,1748721056342,-219.346504,0.000217,2]
[363426726,1748721056352,-151.0,0.000217,2]
[363426728,1748721056362,-187.750318,0.000217,2]
[363426731,1748721056373,-187.750318,0.000217,2]
[363426733,1748721056384,-151.0,0.000218,3]
[363426734,1748721056395,-21588.96,0.00021834,2]
[363426736,1748721056405,-190.996215,0.00021834,2]
[363426739,1748721056415,-190.996215,0.00021834,2]
[363426741,1748721056426,-379.95923803,0.0002186,2]
[363426743,1748721056436,-814.93536587,0.00021866,6]
[363426745,1748721056445,-16334.0,0.000219,2]
[363426747,1748721056455,-1043.700093,0.000219,2]
[363426749,1748721056464,-246.442502,0.000219,2]
[363426750,1748721056473,-246.442502,0.000219,2]
[363426752,1748721056483,-150.0,0.000219,5]
[363426754,1748721056492,-151.0,0.000219,2]
[363426756,1748721056502,-151.0,0.000219,2]
[363426758,1748721056511,-600.639956,0.000219,2]
[363426760,1748721056522,-600.639956,0.000219,2]
[363426762,1748721056531,-4228.86761646,0.000219,2]
[363426764,1748721056542,-314.5372,0.000219,2]
[363426767,1748721056553,-314.5372,0.000219,2]
[363426769,1748721056563,-277.170479,0.000219,2]
[363426771,1748721056573,-277.170479,0.000219,2]
[363426773,1748721056583,-151.0,0.000219,2]
[363426775,1748721056594,-500.0,0.00021917,2]
[363426777,1748721056604,-430.0,0.00021917,2]
[363426779,1748721056614,-980.1,0.00021917,2]
[363426781,1748721056624,-570.41,0.00021917,2]
[363426783,1748721056634,-1448.02,0.00021917,2]
[363426785,1748721056643,-430.0,0.00021917,2]
[363426787,1748721056654,-1183.07,0.00021917,2]
[363426789,1748721056666,-1735.84,0.00021917,2]
[363426803,1748721056795,-1885.75,0.00021917,2]
[363426805,1748721056807,-2122.85,0.00021917,2]
[363426807,1748721056817,-430.0,0.00021917,2]
[363426809,1748721056829,-445.17,0.00021917,2]
[363426811,1748721056838,-3012.31,0.00021917,2]
[363426813,1748721056847,-842.52,0.00021917,2]
[363426815,1748721056857,-490.25,0.00021917,2]
[363426817,1748721056870,-2477.92,0.00021917,2]
[363426819,1748721056879,-200.0,0.00021917,2]
[363426821,1748721056890,-430.0,0.00021917,2]
[363426823,1748721056900,-1209.38,0.00021917,2]
[363426824,1748721056911,-743.56,0.00021917,2]
[363426826,1748721056921,-1121.54,0.00021917,2]
[363426828,1748721056931,-1421.45,0.00021917,2]
[363426830,1748721056941,-1689.57,0.00021917,2]
[363426832,1748721056950,-853.47,0.00021917,2]
[363426834,1748721056960,-696.83,0.00021917,2]
[363426836,1748721056970,-2114.45,0.00021917,2]
[363426838,1748721056980,-1160.86,0.00021917,2]
[363426840,1748721056989,-657.57,0.00021917,2]
[363426842,1748721056999,-928.93606,0.00021918,2]
[363426844,1748721057009,-928.93606,0.00021918,2]
[363426846,1748721057019,-928.93606,0.00021918,2]
[363426848,1748721057029,-928.93606,0.00021918,2]
[363426850,1748721057040,-928.93606,0.00021918,2]
[363426852,1748721057050,-928.93606,0.00021918,2]
[363426854,1748721057062,-928.93606,0.00021918,2]
[363426856,1748721057072,-928.93606,0.00021918,2]
[363426858,1748721057081,-928.93606,0.00021918,2]
[363426860,1748721057090,-928.93606,0.00021918,2]
[363426862,1748721057100,-928.93606,0.00021918,2]
[363426864,1748721057110,-928.93606,0.00021918,2]
[363426866,1748721057119,-928.93606,0.00021918,2]
[363426868,1748721057129,-928.93606,0.00021918,2]
[363426870,1748721057138,-928.93606,0.00021918,2]
[363426872,1748721057147,-928.93606,0.00021918,2]
[363426874,1748721057157,-928.93606,0.00021918,2]
[363426876,1748721057166,-928.93606,0.00021918,2]
[363426878,1748721057176,-500.0,0.00021918,2]
[363426880,1748721057185,-500.0,0.00021918,2]
[363426882,1748721057197,-500.0,0.00021918,2]
[363426884,1748721057207,-500.0,0.00021918,2]
[363426886,1748721057216,-500.0,0.00021918,2]
[363426888,1748721057226,-500.0,0.00021918,2]
[363426890,1748721057236,-500.0,0.00021918,2]
[363426892,1748721057246,-500.0,0.00021918,2]
[363426894,1748721057255,-500.0,0.00021918,2]
[363426896,1748721057266,-500.0,0.00021918,2]
[363426898,1748721057275,-500.0,0.00021918,2]
[363426900,1748721057285,-500.0,0.00021918,2]
[363426902,1748721057296,-500.0,0.00021918,2]
[363426904,1748721057305,-500.0,0.00021918,2]
[363426906,1748721057315,-463.85325381,0.00021918,2]